fUST/lending_fUST_20250218
["ID","MTS","AMOUNT","RATE_DAILY","PERIOD"]
[353479302,1739874639719,-151.1,0.00013994,2]
[353479303,1739874639729,-500.0,0.00013995,2]
[353479305,1739874639739,-500.0,0.00013996,2]
[353479307,1739874639748,-500.0,0.00013996,2]
[353479309,1739874639758,-500.0,0.00013996,2]
[353479310,1739874639767,-500.0,0.00013996,2]
[353479312,1739874639777,-500.0,0.00013996,2]
[353479313,1739874639786,-500.0,0.00013996,2]
[353479315,1739874639795,-500.0,0.00013996,2]
[353479316,1739874639805,-283.5637028,0.00013996,2]
[353479317,1739874639814,-500.0,0.00013996,2]
[353479318,1739874639823,-500.0,0.00013996,2]
[353479320,1739874639832,-500.0,0.00013996,2]
[353479322,1739874639842,-500.0,0.00013996,2]
[353479323,1739874639851,-500.0,0.00013996,2]
[353479324,1739874639861,-500.0,0.00013996,2]
[353479325,1739874639870,-500.0,0.00013996,2]
[353479326,1739874639879,-500.0,0.00013996,2]
[353479328,1739874639889,-500.0,0.00013996,2]
[353479329,1739874639898,-500.0,0.00013996,2]
[353479330,1739874639908,-500.0,0.00013996,2]
[353479331,1739874639917,-500.0,0.00013996,2]
[353479332,1739874639926,-500.0,0.00013996,2]
[353479333,1739874639935,-442.86,0.00013997,2]
[353479334,1739874639944,-500.0,0.00013997,2]
[353479335,1739874639954,-500.0,0.00013997,2]
[353479336,1739874639963,-396.88,0.00013997,2]
[353479337,1739874639973,-500.0,0.00014075,2]
[353479338,1739874639983,-500.0,0.00014075,2]
[353479339,1739874639992,-500.0,0.00014076,2]
[353479341,1739874640002,-570.2,0.00014076,2]
[353479343,1739874640011,-244.76,0.00014076,2]
[353479344,1739874640020,-254.78,0.00014076,2]
[353479345,1739874640030,-500.0,0.00014076,2]
[353479346,1739874640039,-257.32,0.00014076,2]
[353479347,1739874640048,-562.7,0.00014076,2]
[353479348,1739874640058,-381.66,0.00014076,2]
[353479349,1739874640067,-500.0,0.00014076,2]
[353479350,1739874640076,-358.26,0.00014076,2]
[353479351,1739874640086,-500.0,0.00014076,2]
[353479352,1739874640095,-500.0,0.00014076,2]
[353479353,1739874640104,-230.78,0.00014076,2]
[353479354,1739874640113,-548.92,0.00014076,2]
[353479355,1739874640123,-398.18,0.00014076,2]
[353479356,1739874640132,-310.28,0.00014076,2]
[353479357,1739874640142,-500.0,0.00014076,2]
[353479358,1739874640151,-500.0,0.00014076,2]
[353479359,1739874640160,-262.84,0.00014076,2]
[353479360,1739874640169,-574.5,0.00014076,2]
[353479361,1739874640178,-500.0,0.00014076,2]
[353479362,1739874640188,-162.71,0.00014076,2]
[353479364,1739874640197,-206.92,0.00014076,2]
[353479365,1739874640206,-500.0,0.00014076,2]
[353479366,1739874640216,-355.24,0.00014076,2]
[353479367,1739874640226,-476.32,0.00014076,2]
[353479368,1739874640235,-500.0,0.00014076,2]
[353479369,1739874640245,-512.12,0.00014076,2]
[353479370,1739874640254,-500.0,0.00014076,2]
[353479371,1739874640263,-500.0,0.00014076,2]
[353479372,1739874640273,-634.24,0.00014076,2]
[353479373,1739874640282,-500.0,0.00014076,2]
[353479374,1739874640292,-500.0,0.00014076,2]
[353479375,1739874640301,-1238.41,0.00014076,2]
[353479376,1739874640311,-3034.32,0.00014076,2]
[353479377,1739874640320,-620.37,0.00014076,2]
[353479378,1739874640330,-500.0,0.00014076,2]
[353479379,1739874640339,-500.0,0.00014076,2]
[353479380,1739874640348,-500.0,0.00014076,2]
[353479381,1739874640358,-500.0,0.00014076,2]
[353479382,1739874640367,-500.0,0.00014076,2]
[353479383,1739874640377,-500.0,0.00014076,2]
[353479384,1739874640386,-500.0,0.00014076,2]
[353479385,1739874640395,-500.0,0.00014076,2]
[353479386,1739874640404,-500.0,0.00014076,2]
[353479387,1739874640413,-500.0,0.00014076,2]
[353479388,1739874640422,-500.0,0.00014076,2]
[353479389,1739874640431,-500.0,0.00014076,2]
[353479390,1739874640441,-455.74,0.00014076,2]
[353479391,1739874640450,-500.0,0.00014076,2]
[353479392,1739874640459,-500.0,0.00014076,2]
[353479393,1739874640468,-500.0,0.00014076,2]
[353479394,1739874640477,-500.0,0.00014076,2]
[353479395,1739874640486,-500.0,0.00014076,2]
[353479396,1739874640495,-500.0,0.00014076,2]
[353479397,1739874640504,-500.0,0.00014076,2]
[353479398,1739874640513,-500.0,0.00014076,2]
[353479399,1739874640522,-500.0,0.00014076,2]
[353479400,1739874640530,-500.0,0.00014076,2]
[353479401,1739874640539,-500.0,0.00014076,2]
[353479402,1739874640548,-389.64,0.00014076,2]
[353479403,1739874640557,-500.0,0.00014076,2]
[353479404,1739874640566,-1276.34,0.00014076,2]
[353479405,1739874640575,-500.0,0.00014077,2]
[353479406,1739874640583,-748.53,0.00014077,2]
[353479407,1739874640592,-500.0,0.00014079,2]
[353479408,1739874640601,-500.0,0.00014079,2]
[353479409,1739874640610,-500.0,0.00014079,2]
[353479410,1739874640619,-221.36,0.00014079,2]
[353479411,1739874640629,-174.82,0.00014079,2]
[353479412,1739874640638,-501.88,0.00014079,2]
[353479413,1739874640648,-177.82,0.00014079,2]
[353479414,1739874640661,-208.92,0.00014079,2]
[353479415,1739874640670,-500.0,0.0001408,2]
[353479416,1739874640680,-170.261,0.00014133,2]
[353479417,1739874640689,-500.0,0.00014157,2]
[353479418,1739874640698,-500.0,0.00014157,2]
[353479419,1739874640707,-260.48,0.00014158,2]
[353479420,1739874640716,-321.76,0.00014158,2]
[353479421,1739874640726,-305.12,0.00014158,2]
[353479422,1739874640737,-500.0,0.00014158,2]
[353479423,1739874640746,-500.0,0.00014158,2]
[353479424,1739874640756,-500.0,0.00014158,2]
[353479425,1739874640765,-500.0,0.00014158,2]
[353479426,1739874640775,-500.0,0.00014158,2]
[353479427,1739874640784,-3034.32,0.00014158,2]
[353479428,1739874640794,-620.37,0.00014158,2]
[353479429,1739874640803,-500.0,0.00014158,2]
[353479430,1739874640813,-500.0,0.00014158,2]
[353479431,1739874640822,-500.0,0.00014158,2]
[353479432,1739874640832,-580.54,0.00014158,2]
[353479433,1739874640842,-552.62,0.00014158,2]
[353479434,1739874640852,-500.0,0.00014158,2]
[353479435,1739874640862,-500.0,0.00014158,2]
[353479436,1739874640871,-500.0,0.00014158,2]
[353479437,1739874640881,-390.4,0.00014158,2]
[353479438,1739874640890,-500.0,0.00014158,2]
[353479439,1739874640899,-500.0,0.00014158,2]
[353479440,1739874640909,-500.0,0.00014158,2]
[353479441,1739874640918,-460.46,0.00014158,2]
[353479442,1739874640927,-500.0,0.00014158,2]
[353479443,1739874640937,-500.0,0.00014158,2]
[353479444,1739874640947,-500.0,0.00014158,2]
[353479445,1739874640957,-500.0,0.00014158,2]
[353479446,1739874640967,-1276.34,0.00014158,2]
[353479447,1739874640978,-500.0,0.00014159,2]
[353479448,1739874640988,-401.82,0.00014159,2]
[353479449,1739874640997,-346.46,0.00014159,2]
[353479450,1739874641007,-500.0,0.00014159,2]
[353479451,1739874641017,-1238.41,0.00014159,2]
[353479452,1739874641028,-500.0,0.00014159,2]
[353479453,1739874641037,-500.0,0.00014161,2]
[353479454,1739874641047,-500.0,0.00014161,2]
[353479455,1739874641056,-500.0,0.00014161,2]
[353479456,1739874641066,-576.69,0.00014162,2]
[353479457,1739874641075,-500.0,0.00014164,2]
[353479458,1739874641085,-500.0,0.00014239,2]
[353479459,1739874641094,-235.24,0.00014239,2]
[353479460,1739874641103,-500.0,0.0001424,2]
[353479461,1739874641113,-530.08,0.0001424,2]
[353479462,1739874641123,-613.28,0.0001424,2]
[353479463,1739874641133,-500.0,0.0001424,2]
[353479464,1739874641143,-500.0,0.0001424,2]
[353479465,1739874641153,-3034.32,0.0001424,2]
[353479466,1739874641163,-620.37,0.0001424,2]
[353479467,1739874641172,-285.62,0.0001424,2]
[353479468,1739874641182,-500.0,0.0001424,2]
[353479469,1739874641191,-500.0,0.0001424,2]
[353479470,1739874641202,-500.0,0.0001424,2]
[353479471,1739874641211,-500.0,0.0001424,2]
[353479472,1739874641221,-500.0,0.0001424,2]
[353479473,1739874641230,-500.0,0.0001424,2]
[353479474,1739874641240,-500.0,0.0001424,2]
[353479475,1739874641250,-500.0,0.0001424,2]
[353479476,1739874641260,-220.44,0.0001424,2]
[353479477,1739874641270,-500.0,0.0001424,2]
[353479478,1739874641280,-592.70965389,0.0001424,2]
[353479479,1739874641290,-1276.34,0.0001424,2]
[353479480,1739874641299,-188.01083267,0.00014241,2]
[353479481,1739874641309,-500.0,0.00014241,2]
[353479482,1739874641318,-1238.41,0.00014241,2]
[353479483,1739874641328,-500.0,0.00014241,2]
[353479484,1739874641338,-239.92,0.00014241,2]
[353479485,1739874641348,-500.0,0.00014243,2]
[353479486,1739874641359,-500.0,0.00014243,2]
[353479487,1739874641369,-500.0,0.00014243,2]
[353479488,1739874641378,-500.0,0.00014321,2]
[353479489,1739874641388,-500.0,0.00014322,2]
[353479490,1739874641398,-500.0,0.00014322,2]
[353479491,1739874641408,-360.18,0.00014322,2]
[353479492,1739874641418,-3034.32,0.00014322,2]
[353479493,1739874641428,-620.37,0.00014322,2]
[353479494,1739874641437,-500.0,0.00014322,2]
[353479495,1739874641448,-500.0,0.00014322,2]
[353479496,1739874641457,-500.0,0.00014322,2]
[353479497,1739874641467,-500.0,0.00014322,2]
[353479498,1739874641478,-500.0,0.00014322,2]
[353479499,1739874641487,-500.0,0.00014322,2]
[353479500,1739874641497,-500.0,0.00014322,2]
[353479501,1739874641507,-377.82,0.00014322,2]
[353479502,1739874641516,-453.4,0.00014322,2]
[353479503,1739874641526,-1276.34,0.00014322,2]
[353479504,1739874641535,-500.0,0.00014323,2]
[353479505,1739874641545,-500.0,0.00014323,2]
[353479506,1739874641554,-748.53,0.00014323,2]
[353479507,1739874641563,-1238.41,0.00014323,2]
[353479508,1739874641573,-500.0,0.00014325,2]
[353479509,1739874641583,-500.0,0.00014325,2]
[353479510,1739874641592,-500.0,0.00014325,2]
[353479511,1739874641602,-500.0,0.00014403,2]
[353479512,1739874641611,-500.0,0.00014404,2]
[353479513,1739874641621,-500.0,0.00014404,2]
[353479514,1739874641630,-3034.32,0.00014404,2]
[353479515,1739874641640,-620.37,0.00014404,2]
[353479516,1739874641650,-500.0,0.00014404,2]
[353479517,1739874641662,-371.22673303,0.00014404,2]
[353479518,1739874641672,-500.0,0.00014404,2]
[353479519,1739874641682,-500.0,0.00014404,2]
[353479520,1739874641692,-500.0,0.00014404,2]
[353479521,1739874641702,-597.76,0.00014404,2]
[353479522,1739874641712,-541.66,0.00014404,2]
[353479523,1739874641721,-1276.34,0.00014404,2]
[353479524,1739874641733,-500.0,0.00014405,2]
[353479525,1739874641742,-1238.41,0.00014405,2]
[353479526,1739874641751,-500.0,0.00014407,2]
[353479527,1739874641761,-500.0,0.00014407,2]
[353479528,1739874641771,-500.0,0.00014407,2]
[353479529,1739874641780,-500.0,0.00014486,2]
[353479530,1739874641790,-328.94,0.00014487,2]
[353479531,1739874641799,-500.0,0.00014487,2]
[353479532,1739874641808,-500.0,0.00014487,2]
[353479533,1739874641818,-1238.41,0.00014487,2]
[353479534,1739874641827,-3034.32,0.00014487,2]
[353479535,1739874641837,-620.37,0.00014487,2]
[353479536,1739874641846,-157.1,0.00014487,2]
[353479537,1739874641856,-500.0,0.00014487,2]
[353479538,1739874641865,-500.0,0.00014487,2]
[353479539,1739874641875,-500.0,0.00014487,2]
[353479540,1739874641884,-1276.34,0.00014487,2]
[353479541,1739874641894,-616.96,0.0001449,2]
[353479542,1739874641904,-500.0,0.0001449,2]
[353479543,1739874641913,-500.0,0.0001449,2]
[353479544,1739874641923,-500.0,0.00014568,2]
[353479545,1739874641932,-500.0,0.00014569,2]
[353479546,1739874641942,-500.0,0.00014569,2]
[353479547,1739874641951,-3034.32,0.00014569,2]
[353479548,1739874642041,-620.37,0.00014569,2]
[353479549,1739874642051,-500.0,0.00014569,2]
[353479550,1739874642060,-500.0,0.00014569,2]
[353479551,1739874642070,-500.0,0.00014569,2]
[353479552,1739874642079,-1276.34,0.00014569,2]
[353479553,1739874642088,-1238.41,0.0001457,2]
[353479554,1739874642098,-227.16025391,0.00014571,2]
[353479555,1739874642107,-258.46,0.00014572,2]
[353479556,1739874642116,-236.72,0.00014572,2]
[353479557,1739874642125,-533.04,0.0001465,2]
[353479558,1739874642135,-500.0,0.00014651,2]
[353479559,1739874642144,-500.0,0.00014651,2]
[353479560,1739874642153,-3034.32,0.00014651,2]
[353479561,1739874642162,-620.37,0.00014651,2]
[353479562,1739874642172,-500.0,0.00014651,2]
[353479563,1739874642181,-500.0,0.00014651,2]
[353479564,1739874642193,-500.0,0.00014651,2]
[353479565,1739874642202,-1276.34,0.00014651,2]
[353479566,1739874642211,-1238.41,0.00014652,2]
[353479567,1739874642221,-500.0,0.00014733,2]
[353479568,1739874642230,-500.0,0.00014733,2]
[353479569,1739874642239,-3034.32,0.00014733,2]
[353479570,1739874642249,-620.37,0.00014733,2]
[353479571,1739874642258,-266.02,0.00014733,2]
[353479572,1739874642268,-500.0,0.00014733,2]
[353479573,1739874642278,-500.0,0.00014733,2]
[353479574,1739874642287,-1276.34,0.00014733,2]
[353479575,1739874642296,-500.0,0.00014734,2]
[353479576,1739874642306,-748.53,0.00014734,2]
[353479577,1739874642317,-1238.41,0.00014734,2]
[353479578,1739874642328,-500.0,0.00014815,2]
[353479579,1739874642338,-470.5,0.00014815,2]
[353479580,1739874642347,-3034.32,0.00014815,2]
[353479581,1739874642356,-620.37,0.00014815,2]
[353479583,1739874642366,-500.0,0.00014815,2]
[353479584,1739874642376,-500.0,0.00014815,2]
[353479586,1739874642385,-1276.34,0.00014815,2]
[353479588,1739874642395,-1238.41,0.00014816,2]
[353479590,1739874642404,-500.0,0.00014898,2]
[353479592,1739874642414,-1238.41,0.00014898,2]
[353479594,1739874642423,-3034.32,0.00014898,2]
[353479596,1739874642432,-620.37,0.00014898,2]
[353479598,1739874642441,-500.0,0.00014898,2]
[353479600,1739874642450,-358.38,0.00014898,2]
[353479602,1739874642460,-1276.34,0.00014898,2]
[353479603,1739874642469,-458.24,0.0001498,2]
[353479604,1739874642478,-3034.32,0.0001498,2]
[353479605,1739874642487,-620.37,0.0001498,2]
[353479606,1739874642497,-500.0,0.0001498,2]
[353479608,1739874642506,-1276.34,0.0001498,2]
[353479609,1739874642516,-1238.41,0.00014981,2]
[353479611,1739874642525,-3034.32,0.00015062,2]
[353479613,1739874642535,-620.37,0.00015062,2]
[353479615,1739874642544,-500.0,0.00015062,2]
[353479617,1739874642553,-1276.34,0.00015062,2]
[353479619,1739874642563,-1238.41,0.00015063,2]
[353479622,1739874642573,-3034.32,0.00015144,2]
[353479623,1739874642582,-620.37,0.00015144,2]
[353479625,1739874642591,-500.0,0.00015144,2]
[353479628,1739874642601,-1276.34,0.00015144,2]
[353479630,1739874642610,-1238.41,0.00015145,2]
[353479632,1739874642620,-436.367237,0.00015146,2]
[353479635,1739874642629,-748.53,0.00015146,2]
[353479637,1739874642638,-181.3317306,0.00015177,2]
[353479639,1739874642648,-3034.32,0.00015226,2]
[353479641,1739874642661,-620.37,0.00015226,2]
[353479642,1739874642671,-500.0,0.00015226,2]
[353479644,1739874642680,-1276.34,0.00015226,2]
[353479645,1739874642689,-1238.41,0.00015227,2]
[353479646,1739874642700,-1238.41,0.00015309,2]
[353479647,1739874642709,-3034.32,0.00015309,2]
[353479648,1739874642719,-620.37,0.00015309,2]
[353479649,1739874642729,-500.0,0.00015309,2]
[353479650,1739874642739,-1276.34,0.00015309,2]
[353479651,1739874642748,-3034.32,0.00015391,2]
[353479652,1739874642758,-620.37,0.00015391,2]
[353479653,1739874642767,-500.0,0.00015391,2]
[353479654,1739874642777,-1276.34,0.00015391,2]
[353479655,1739874642786,-1238.41,0.00015392,2]
[353479656,1739874642795,-3034.32,0.00015473,2]
[353479657,1739874642805,-620.37,0.00015473,2]
[353479658,1739874642814,-500.0,0.00015473,2]
[353479659,1739874642824,-1276.34,0.00015473,2]
[353479660,1739874642833,-1238.41,0.00015474,2]
[353479661,1739874642842,-500.0,0.00015534,2]
[353479662,1739874642851,-3034.32,0.00015555,2]
[353479663,1739874642861,-620.37,0.00015555,2]
[353479664,1739874642871,-500.0,0.00015555,2]
[353479665,1739874642879,-1276.34,0.00015555,2]
[353479666,1739874642889,-1238.41,0.00015556,2]
[353479668,1739874642898,-3034.32,0.00015637,2]
[353479669,1739874642908,-620.37,0.00015637,2]
[353479670,1739874642918,-500.0,0.00015637,2]
[353479671,1739874642927,-748.53,0.00015638,2]
[353479672,1739874642936,-1238.41,0.00015638,2]
[353479673,1739874642945,-1238.41,0.0001572,2]
[353479674,1739874642954,-3034.32,0.0001572,2]
[353479675,1739874642964,-620.37,0.0001572,2]
[353479676,1739874642974,-270.76,0.0001572,2]
[353479677,1739874642984,-400.0,0.00015775,2]
[353479678,1739874642994,-3034.44,0.00015802,2]
[353479679,1739874643004,-620.49,0.00015802,2]
[353479680,1739874643013,-1238.41,0.00015803,2]
[353479681,1739874643022,-499.0,0.00016164,2]
[353479682,1739874643032,-181.3317306,0.00016538,2]
[353479683,1739874643041,-2291.0,0.00016643,2]
[353479684,1739874643051,-396.0,0.00016643,2]
[353479685,1739874643060,-264.242,0.00016643,2]
[353479687,1739874643070,-748.53,0.00016902,2]
[353479688,1739874643079,-500.0,0.00016904,2]
[353479689,1739874643088,-748.53,0.00016985,2]
[353479690,1739874643097,-355.0331824,0.00017041,2]
[353479691,1739874643107,-748.53,0.00017067,2]
[353479692,1739874643116,-153.0,0.00017178,2]
[353479693,1739874643125,-215.9483191,0.00017178,2]
[353479694,1739874643135,-154.7234452,0.00017178,2]
[353479695,1739874643143,-153.0,0.00017178,2]
[353479696,1739874643153,-151.0,0.000172,2]
[353479697,1739874643162,-601.41050449,0.0001728,2]
[353479698,1739874643171,-748.53,0.00017313,2]
[353479699,1739874643181,-499.0,0.00017534,4]
[353479700,1739874643190,-151.0,0.000176,2]
[353479701,1739874643199,-177.3282364,0.00017638,2]
[353479702,1739874643209,-748.53,0.00017806,2]
[353479703,1739874643218,-3000.0,0.000179,2]
[353479704,1739874643228,-181.3317306,0.000179,2]
[353479705,1739874643237,-500.0,0.00017973,2]
[353479706,1739874643247,-160.0,0.0001799,5]
[353479707,1739874643256,-748.53,0.00017999,2]
[353479708,1739874643265,-748.53,0.00017999,2]
[353479709,1739874643274,-748.53,0.00017999,2]
[353479710,1739874643283,-748.53,0.00017999,2]
[353479711,1739874643292,-748.53,0.00017999,2]
[353479712,1739874643302,-748.53,0.00017999,2]
[353479713,1739874643311,-748.53,0.00017999,2]
[353479714,1739874643320,-748.76637111,0.00017999,2]
[353479715,1739874643330,-18052.5376384,0.00018,5]
[353479716,1739874643339,-262.12120719,0.00018,5]
[353479717,1739874643348,-184369.74250263,0.00018,15]
[353479718,1739874643358,-37575.63494412,0.00018,15]
[353479719,1739874643407,-414.3187998,0.00018,15]
[353479720,1739874643422,-2126.83669878,0.00018,15]
[353479721,1739874643439,-3435.28023237,0.00018,15]
[353479722,1739874643450,-468.04,0.00018,15]
[353479723,1739874643464,-7093.11187764,0.00018,15]
[353479724,1739874643497,-6416.4597546,0.00018,15]
[353479725,1739874643513,-349.06776028,0.00018,15]
[353479726,1739874643524,-1869.03403965,0.00018,15]
[353479727,1739874643612,-500.0,0.0001391,2]
[353479728,1739874643623,-500.0,0.00013911,2]
[353479729,1739874643633,-344.35388602,0.00013911,2]
[353479730,1739874643645,-155.64611398,0.00013911,2]
[353479731,1739874643657,-500.0,0.00013911,2]
[353479732,1739874643667,-500.0,0.00013912,2]
[353479733,1739874643677,-500.0,0.00013913,2]
[353479734,1739874643687,-500.0,0.00013913,2]
[353479735,1739874643698,-500.0,0.00013914,2]
[353479736,1739874643707,-500.0,0.00013992,2]
[353479737,1739874643716,-242.65,0.00013992,2]
[353479738,1739874643727,-1276.34,0.00015637,2]
[353479739,1739874643737,-1276.34,0.0001572,2]
[353479740,1739874643748,-1276.56,0.00015802,2]
[353479741,1739874643758,-5928.95633363,0.00018,15]
[353479742,1739874643770,-71959.37293015,0.00018,15]
[353479743,1739874643781,-392.56769689,0.00018,15]
[353479744,1739874643790,-15142.55820081,0.00018,15]
[353479745,1739874643801,-1680.51653166,0.00018,15]
[353479746,1739874643812,-7060.80686333,0.00018,15]
[353479747,1739874643824,-657.87204931,0.00018,15]
[353479748,1739874643847,-16614.65180428,0.00018,15]
[353479749,1739874643858,-7513.45096045,0.00018,15]
[353479750,1739874643869,-5743.12792487,0.00018,15]
[353479751,1739874643880,-4570.37987732,0.00018,15]
[353479752,1739874643891,-319726.87576466,0.00018,15]
[353479753,1739874643900,-96053.61565669,0.00018,15]
[353479754,1739874643945,-255.76003803,0.00013993,2]
[353479755,1739874643961,-680.48889519,0.00013993,2]
[353479756,1739874643971,-982.01110481,0.00016643,2]
[353479757,1739874643983,-988.98889519,0.00016643,2]
[353479758,1739874643993,-3333.46399131,0.00018,15]
[353479759,1739874644004,-777.15168557,0.00018,15]
[353479770,1739874645953,-538.0,0.00016643,2]
[353479771,1739874645963,-31326.56604527,0.00018,15]
[353479772,1739874645974,-25994.21866706,0.00018,15]
[353479773,1739874645983,-131.9840564,0.00018,15]
[353479786,1739875254236,400.0,9.041e-05,2]
[353479787,1739875538110,-158.99207633,0.00012689,2]
[353479788,1739875538130,-158.99207633,0.00012817,2]
[353479789,1739875538150,-445.1830682,0.00012947,2]
[353479790,1739875538171,-48.18251207,0.00013809,2]
[353479792,1739875626095,-467.40768499,0.00013671,2]
[353479793,1739875626116,-197.71362895,0.00013809,2]
[353479794,1739875627091,-719.36518828,0.00013809,2]
[353479795,1739875630072,-1034.7386707,0.00013809,2]
[353479796,1739875630094,-290.26031448,0.00013908,2]
[353479797,1739875630116,-73.1022415,0.00013908,2]
[353479820,1739875832280,-500.0,0.00013907,2]
[353479821,1739875832290,-500.0,0.00013907,2]
[353479822,1739875832300,-500.0,0.00013907,2]
[353479823,1739875832310,-260.69707867,0.00013907,2]
[353479824,1739875832321,-1.77192204,0.00013907,2]
[353479825,1739875832331,-500.0,0.00013907,2]
[353479826,1739875832340,-500.0,0.00013908,2]
[353479827,1739875832350,-505.38546908,0.00013908,2]
[353479828,1739875832359,-413.31949236,0.00013908,2]
[353479829,1739875832371,-89.92884831,0.00013908,2]
[353479830,1739875832380,-500.0,0.00013908,2]
[353479831,1739875832390,-500.0,0.00013908,2]
[353479832,1739875832399,-622.90287924,0.00013908,2]
[353479833,1739875832409,-500.0,0.00013908,2]
[353479834,1739875832418,-500.0,0.00013908,2]
[353479835,1739875832428,-500.0,0.00013908,2]
[353479836,1739875832437,-186.48804255,0.00013908,2]
[353479837,1739875832447,-500.0,0.00013908,2]
[353479838,1739875832456,-528.00897949,0.00013908,2]
[353479839,1739875832466,-500.0,0.00013908,2]
[353479840,1739875832475,-500.0,0.00013908,2]
[353479841,1739875832485,-500.0,0.00013908,2]
[353479842,1739875832495,-500.0,0.00013908,2]
[353479843,1739875832504,-500.0,0.00013908,2]
[353479844,1739875832514,-500.0,0.00013908,2]
[353479845,1739875832523,-500.0,0.00013908,2]
[353479846,1739875832533,-500.0,0.00013908,2]
[353479847,1739875832543,-500.0,0.00013908,2]
[353479848,1739875832552,-500.0,0.00013908,2]
[353479849,1739875832561,-500.0,0.00013908,2]
[353479850,1739875832571,-500.0,0.00013908,2]
[353479851,1739875832581,-500.0,0.00013908,2]
[353479852,1739875832591,-540.37263792,0.00013908,2]
[353479853,1739875832600,-500.0,0.00013908,2]
[353479854,1739875832609,-500.0,0.00013908,2]
[353479855,1739875832620,-500.0,0.00013908,2]
[353479856,1739875832630,-500.0,0.00013908,2]
[353479857,1739875832639,-500.0,0.00013908,2]
[353479858,1739875832648,-500.0,0.00013908,2]
[353479859,1739875832657,-500.0,0.00013908,2]
[353479860,1739875832666,-500.0,0.00013908,2]
[353479861,1739875832676,-500.0,0.00013908,2]
[353479862,1739875832686,-500.0,0.00013908,2]
[353479863,1739875832695,-640.53785926,0.00013908,2]
[353479864,1739875832704,-500.0,0.00013908,2]
[353479865,1739875832714,-500.0,0.00013908,2]
[353479866,1739875832723,-500.0,0.00013908,2]
[353479867,1739875832733,-500.0,0.00013908,2]
[353479868,1739875832744,-500.0,0.00013908,2]
[353479869,1739875832754,-500.0,0.00013908,2]
[353479870,1739875832764,-501.04512962,0.00013908,2]
[353479871,1739875832774,-500.0,0.00013908,2]
[353479872,1739875832784,-500.0,0.00013908,2]
[353479873,1739875832793,-500.0,0.00013908,2]
[353479874,1739875832803,-636.21089963,0.00013908,2]
[353479875,1739875832813,-500.0,0.00013908,2]
[353479876,1739875832824,-571.41,0.00013908,2]
[353479877,1739875832834,-500.0,0.00013908,2]
[353479878,1739875832844,-500.0,0.00013908,2]
[353479879,1739875832853,-500.0,0.00013908,2]
[353479880,1739875832862,-500.0,0.00013908,2]
[353479881,1739875832871,-500.0,0.00013908,2]
[353479882,1739875832881,-500.0,0.00013908,2]
[353479883,1739875832890,-340.76899894,0.00013908,2]
[353479884,1739875832900,-500.0,0.00013908,2]
[353479885,1739875832910,-500.0,0.00013908,2]
[353479886,1739875832919,-500.0,0.00013908,2]
[353479887,1739875832928,-500.0,0.00013908,2]
[353479888,1739875832937,-500.0,0.00013908,2]